bitfinex/quotes_SOLUSD_20251106
["timestamp","ask_amount","ask_price","bid_price","bid_amount"]
[1762441791727,0.71,158.24,158.2,6.857028]
[1762441791932,0.71,158.24,158.17,7.92]
[1762441792247,0.71,158.24,158.18,6.857028]
[1762441792709,7.567028,158.24,158.17,7.92]
[1762441792910,7.567028,158.24,158.18,6.857028]
[1762441793152,6.857028,158.22,158.17,7.92]
[1762441793436,22.65881044,158.21,158.14,6.857028]
[1762441793620,23.37881044,158.21,158.15,6.857028]
[1762441793822,0.72,158.2,158.15,6.857028]
[1762441795241,0.72,158.2,158.17,6.857028]
[1762441795418,0.72,158.2,158.14,9.93098926]
[1762441795419,22.12529236,158.19,158.16,6.857028]
[1762441795817,22.84529236,158.19,158.16,6.857028]
[1762441796426,22.12529236,158.19,158.15,6.857028]
[1762441796627,0.72,158.18,158.15,6.857028]
[1762441797435,22.12809002,158.17,158.11,30.38082769]
[1762441797634,22.12809002,158.17,158.13,6.857028]
[1762441797950,0.72,158.18,158.13,6.857028]
[1762441798116,7.04197386,158.18,158.14,6.857028]
[1762441798516,0.72,158.17,158.14,6.857028]
[1762441798833,20.592,158.2,158.16,6.857028]
[1762441799013,0.72,158.18,158.15,6.857028]
[1762441799415,7.0421509,158.18,158.15,6.857028]
[1762441799818,0.72,158.17,158.11,30.38082769]
[1762441800042,0.72,158.17,158.14,6.857028]
[1762441800238,0.72,158.17,158.12,6.857028]
[1762441801032,0.72,158.17,158.13,6.857028]
[1762441801230,6.32152458,158.19,158.12,9.93098926]
[1762441801418,7.04152458,158.19,158.15,6.857028]
[1762441801618,7.04152458,158.19,158.12,9.93098926]
[1762441801619,22.12530484,158.19,158.14,6.857028]
[1762441801842,0.72,158.18,158.13,6.857028]
[1762441802045,6.32152458,158.19,158.16,6.857028]
[1762441802353,22.84269657,158.21,158.17,6.857028]
[1762441802555,0.72,158.23,158.19,6.857028]
[1762441802855,0.72,158.27,158.22,6.857028]
[1762441803040,6.31791761,158.28,158.25,6.857028]
[1762441803352,6.31911532,158.25,158.17,7.92]
[1762441803652,6.857028,158.23,158.17,7.92]
[1762441803830,6.857028,158.21,158.17,7.92]
[1762441804029,6.31911532,158.25,158.2,6.857028]
[1762441804246,0.72,158.24,158.22,6.857028]
[1762441805056,7.577028,158.24,158.15,20.73416157]
[1762441805355,0.72,158.24,158.21,6.857028]
[1762441805556,21.312,158.27,158.23,6.857028]
[1762441805731,0.72,158.27,158.25,6.857028]
[1762441805932,9.78882769,158.35,158.26,6.857028]
[1762441806144,7.0343272,158.37,158.33,6.857028]
[1762441806349,29.67717322,158.37,158.27,0.31399684]
[1762441806558,29.67717322,158.37,158.26,7.92]
[1762441806559,6.857028,158.35,158.29,6.857028]
[1762441806857,0.72,158.36,158.34,6.857028]
[1762441807360,0.72,158.36,158.3,10.10300475]
[1762441807663,6.31512472,158.35,158.32,6.857028]
[1762441807873,6.31512472,158.35,158.29,20.592]
[1762441808162,0.72,158.34,158.29,20.592]
[1762441808337,0.72,158.34,158.3,6.857028]
[1762441808538,0.72,158.34,158.31,6.857028]
[1762441808746,0.72,158.34,158.32,6.857028]
[1762441808942,6.3147929,158.36,158.33,6.857028]
[1762441809147,0.1,158.38,158.35,6.857028]
[1762441809350,0.72,158.37,158.32,0.31377782]
[1762441809553,0.72,158.37,158.31,20.592]
[1762441809757,7.03440618,158.37,158.33,6.857028]
[1762441809959,22.8202242,158.37,158.33,6.857028]
[1762441810136,0.72,158.36,158.33,6.857028]
[1762441810340,0.72,158.36,158.3,9.78882769]
[1762441810652,0.1,158.38,158.34,6.857028]
[1762441810831,0.1,158.38,158.29,33.90869346]
[1762441810832,0.72,158.37,158.32,6.857028]
[1762441811033,7.577028,158.37,158.29,20.73416157]
[1762441811256,7.577028,158.37,158.32,6.857028]
[1762441811446,7.577028,158.37,158.29,27.05165523]
[1762441811447,6.31512472,158.35,158.29,27.05165523]
[1762441811769,6.31512472,158.35,158.32,6.857028]
[1762441812063,0.72,158.36,158.33,6.857028]
[1762441812240,7.03478595,158.36,158.33,6.857028]
[1762441812638,6.41396227,158.38,158.34,6.857028]
[1762441812943,7.13396227,158.38,158.35,6.857028]
[1762441813473,0.1,158.38,158.37,6.857028]
[1762441813646,0.1,158.38,158.37,16.78801726]
[1762441813833,0.1,158.38,158.37,23.10234446]
[1762441814446,0.1,158.38,158.37,16.78801726]
[1762441814637,0.1,158.38,158.37,43.69434446]
[1762441814839,0.1,158.38,158.37,23.10234446]
[1762441815160,0.1,158.4,158.38,9.93098926]
[1762441815375,0.1,158.4,158.39,23.95848476]
[1762441815539,0.1,158.4,158.39,17.10145676]
[1762441815864,0.1,158.4,158.39,6.857028]
[1762441816560,0.1,158.4,158.39,37.38001726]
[1762441816763,0.1,158.4,158.39,37.69341683]
[1762441817439,0.1,158.4,158.39,17.10141683]
[1762441817661,0.1,158.4,158.39,23.41494672]
[1762441817863,0.1,158.4,158.39,30.27197472]
[1762441818260,0.1,158.42,158.4,9.93098926]
[1762441818435,0.1,158.42,158.41,7.31242979]
[1762441818770,0.1,158.45,158.44,20.592]
[1762441818943,0.1,158.45,158.44,35.80409105]
[1762441819765,0.1,158.45,158.44,42.11562854]
[1762441819972,0.1,158.46,158.45,9.93098926]
[1762441820266,0.1,158.49,158.48,30.52298926]
[1762441820451,0.1,158.49,158.48,37.38001726]
[1762441822082,0.1,158.49,158.48,43.68996173]
[1762441823941,0.1,158.56,158.53,9.78882769]
[1762441824257,0.1,158.56,158.48,50.85953287]
[1762441824258,0.1,158.56,158.55,37.38001726]
[1762441824466,0.1,158.56,158.55,45.28001726]
[1762441824660,0.1,158.59,158.58,30.38082769]
[1762441824844,0.1,158.59,158.58,37.38001726]
[1762441825351,0.1,158.63,158.62,30.38082769]
[1762441825560,0.1,158.63,158.62,52.44815622]
[1762441825869,0.1,158.63,158.62,58.75253145]
[1762441826944,0.1,158.63,158.62,45.59112822]
[1762441827148,0.1,158.63,158.62,51.89550345]
[1762441827360,0.1,158.63,158.62,58.75253145]
[1762441827647,6.30086636,158.71,158.66,30.52298926]
[1762441827847,0.67,158.71,158.66,37.38001726]
[1762441828108,0.67,158.71,158.66,30.52298926]
[1762441828244,0.77,158.67,158.66,27.449028]
[1762441828443,0.77,158.67,158.63,0.14216157]
[1762441828444,0.77,158.67,158.65,6.857028]
[1762441828669,0.77,158.67,158.66,6.857028]
[1762441828873,0.77,158.67,158.65,6.857028]
[1762441828874,7.0723886,158.67,158.65,6.857028]
[1762441829168,13.9294166,158.67,158.62,7.9]
[1762441829372,0.67,158.66,158.62,14.757028]
[1762441829585,0.67,158.66,158.62,7.9]
[1762441829752,6.3031831,158.65,158.62,14.757028]
[1762441829953,6.3031831,158.65,158.62,7.9]
[1762441830182,0.67,158.64,158.6,6.857028]
[1762441830402,6.857028,158.62,158.53,0.31124902]
[1762441830691,6.857028,158.59,158.54,6.857028]
[1762441830857,20.592,158.63,158.51,6.857028]
[1762441830858,21.38009658,158.61,158.51,6.857028]
[1762441831193,6.857028,158.58,158.53,6.857028]
[1762441831359,0.67,158.6,158.55,6.857028]
[1762441831768,0.67,158.6,158.56,6.857028]
[1762441831986,22.73817043,158.6,158.55,6.857028]
[1762441832482,0.67,158.59,158.55,6.857028]
[1762441832680,0.67,158.59,158.57,6.857028]
[1762441833083,0.67,158.59,158.55,0.14216157]
[1762441833397,0.67,158.59,158.58,6.857028]
[1762441833603,0.67,158.59,158.55,6.857028]
[1762441833908,28.61031223,158.6,158.55,6.857028]
[1762441834275,21.75328423,158.6,158.55,6.857028]
[1762441834674,6.857028,158.59,158.54,27.449028]
[1762441834905,21.75328423,158.6,158.54,27.449028]
[1762441834906,6.857028,158.58,158.54,20.592]
[1762441835082,10.57682491,158.63,158.54,27.449028]
[1762441835285,26.89561009,158.64,158.55,6.857028]
[1762441835491,6.857028,158.62,158.56,6.857028]
[1762441835786,26.89561009,158.64,158.54,20.592]
[1762441835787,6.30556781,158.59,158.54,20.592]
[1762441835981,13.16259581,158.59,158.54,20.592]
[1762441836177,6.857028,158.57,158.51,6.857028]
[1762441836490,6.857028,158.52,158.45,6.857028]
[1762441836803,7.527028,158.51,158.45,6.857028]
[1762441837008,0.67,158.51,158.46,6.857028]
[1762441837206,20.592,158.54,158.45,6.857028]
[1762441837207,7.577028,158.5,158.45,6.857028]
[1762441837687,0.72,158.49,158.45,6.857028]
[1762441837896,7.577028,158.49,158.43,7.88]
[1762441838094,29.66069993,158.49,158.43,14.737028]
[1762441838297,7.577028,158.48,158.43,14.737028]
[1762441838507,0.72,158.48,158.43,14.737028]
[1762441838706,0.72,158.51,158.47,6.857028]
[1762441838892,0.72,158.51,158.48,6.857028]
[1762441839209,0.14216157,158.58,158.5,6.857028]
[1762441839210,0.72,158.54,158.5,6.857028]
[1762441839506,0.72,158.54,158.53,6.857028]
[1762441839885,7.02755645,158.54,158.52,6.857028]
[1762441840083,0.72,158.58,158.53,6.857028]
[1762441840418,4.83178875,158.64,158.57,4.83178875]
[1762441840599,0.72,158.66,158.58,4.83178875]
[1762441840600,6.3039778,158.63,158.58,4.83178875]
[1762441840804,21.30981674,158.65,158.59,4.83178875]
[1762441841100,0.72,158.64,158.6,4.83178875]
[1762441841405,7.02358258,158.64,158.56,9.93098926]
[1762441841605,7.02358258,158.64,158.59,4.83178875]
[1762441841792,0.72,158.63,158.6,4.83178875]
[1762441841993,0.72,158.63,158.56,9.93098926]
[1762441841994,6.30437523,158.62,158.59,4.83178875]
[1762441842520,0.72,158.61,158.59,4.83178875]
[1762441842810,0.72,158.61,158.58,4.83178875]
[1762441843021,5.55178875,158.61,158.55,20.592]
[1762441843218,4.83178875,158.6,158.55,20.592]
[1762441843395,0.72,158.6,158.57,4.83178875]
[1762441843594,0.72,158.63,158.59,4.83178875]
[1762441843912,0.72,158.63,158.6,4.83178875]
[1762441844113,7.02403838,158.63,158.61,4.83178875]
[1762441844320,7.02403838,158.63,158.6,4.83178875]
[1762441844812,0.72,158.62,158.6,4.83178875]
[1762441845000,0.1,158.67,158.63,20.592]
[1762441845001,0.82,158.67,158.63,20.592]
[1762441845390,0.82,158.67,158.63,4.83178875]
[1762441845590,4.83178875,158.66,158.61,4.83178875]
[1762441845802,4.83178875,158.65,158.59,20.592]
[1762441846006,11.13536918,158.64,158.59,4.83178875]
[1762441846200,4.83178875,158.63,158.55,17.66882769]
[1762441846397,4.83178875,158.63,158.59,4.83178875]
[1762441846398,0.72,158.63,158.59,4.83178875]
[1762441846620,0.72,158.62,158.59,4.83178875]
[1762441846996,0.72,158.62,158.56,20.73416157]
[1762441847190,0.72,158.62,158.56,0.14216157]
[1762441847401,0.72,158.62,158.57,4.83178875]
[1762441847624,0.72,158.62,158.58,4.83178875]
[1762441847816,0.72,158.62,158.56,0.14216157]
[1762441847817,0.72,158.62,158.57,4.83178875]
[1762441847989,6.30636312,158.57,158.55,28.472]
[1762441848517,6.30563059,158.59,158.55,33.30378875]
[1762441848727,0.72,158.59,158.57,4.83178875]
[1762441849495,6.30519586,158.6,158.57,4.83178875]
[1762441849695,7.02519586,158.6,158.58,4.83178875]
[1762441849896,0.72,158.59,158.57,4.83178875]
[1762441850092,7.02595393,158.59,158.56,4.83178875]
[1762441850298,0.72,158.59,158.57,4.83178875]
[1762441850639,7.02559515,158.59,158.57,4.83178875]
[1762441850816,7.02473916,158.62,158.58,4.83178875]
[1762441851117,0.72,158.61,158.58,4.83178875]
[1762441851321,0.72,158.61,158.55,34.77909611]
[1762441851322,0.72,158.61,158.57,4.83178875]
[1762441851532,0.72,158.61,158.55,28.472]
[1762441851824,0.72,158.61,158.57,4.83178875]
[1762441852202,7.02513209,158.61,158.57,4.83178875]
[1762441852594,0.7,158.6,158.57,4.83178875]
[1762441853937,0.7,158.6,158.55,28.472]
[1762441854105,0.7,158.6,158.55,33.30378875]
[1762441854439,6.30556781,158.59,158.55,12.71178875]
[1762441854933,0.7,158.58,158.56,4.83178875]
[1762441855714,6.305219,158.6,158.56,4.83178875]
[1762441855921,20.59353593,158.62,158.58,4.83178875]
[1762441855922,0.7,158.62,158.58,4.83178875]
[1762441856124,0.7,158.62,158.6,4.83178875]
[1762441856528,7.00443931,158.62,158.59,4.83178875]
[1762441856832,0.7,158.62,158.59,4.83178875]
[1762441857033,4.83178875,158.64,158.59,4.83178875]
[1762441857034,0.7,158.61,158.59,4.83178875]
[1762441857211,0.7,158.61,158.58,4.83178875]
[1762441857832,0.7,158.61,158.59,4.83178875]
[1762441858031,0.7,158.61,158.57,26.89833538]
[1762441858032,0.7,158.61,158.58,4.83178875]
[1762441858235,0.7,158.61,158.57,25.42378875]
[1762441858737,0.7,158.61,158.58,4.83178875]
[1762441858909,7.00486461,158.61,158.58,4.83178875]
[1762441859110,0.7,158.61,158.58,4.83178875]
[1762441859305,0.7,158.6,158.58,4.83178875]
[1762441859536,22.06392232,158.63,158.58,4.83178875]
[1762441859537,26.89571107,158.63,158.58,4.83178875]
[1762441859840,0.7,158.62,158.6,4.83178875]
[1762441860134,0.7,158.65,158.61,4.83178875]
[1762441860438,27.59294476,158.65,158.6,20.592]
[1762441860654,4.83178875,158.61,158.55,7.88]
[1762441860816,4.83178875,158.62,158.55,34.7790434]
[1762441861011,20.692,158.67,158.59,20.592]
[1762441861242,0.1,158.67,158.66,4.83178875]
[1762441862534,0.1,158.75,158.67,0.14216157]
[1762441862739,0.1,158.75,158.74,4.83178875]
[1762441863727,0.1,158.75,158.74,36.01477801]
[1762441864168,0.1,158.75,158.72,7.86]
[1762441864338,0.1,158.75,158.74,25.42378875]
[1762441864668,0.1,158.75,158.74,4.83178875]
[1762441864669,7.09921259,158.75,158.74,4.83178875]
[1762441864875,7.09921259,158.75,158.66,0.31005624]
[1762441864876,11.93100134,158.75,158.66,0.31005624]
[1762441865035,4.83178875,158.73,158.68,4.83178875]
[1762441865235,4.83178875,158.72,158.67,12.69178875]
[1762441865458,4.83178875,158.71,158.67,7.86]
[1762441865683,4.83178875,158.73,158.68,4.83178875]
[1762441865868,4.83178875,158.73,158.65,20.592]
[1762441865869,4.83178875,158.7,158.65,4.83178875]
[1762441866169,4.83178875,158.66,158.62,7.86]
[1762441866343,0.7,158.69,158.62,12.69178875]
[1762441866541,4.83178875,158.65,158.62,7.86]
[1762441866755,4.83178875,158.65,158.59,4.83178875]
[1762441866956,22.7597504,158.66,158.62,4.83178875]
[1762441867159,5.53178875,158.65,158.6,4.83178875]
[1762441867359,0.7,158.65,158.58,20.592]
[1762441867554,0.7,158.65,158.61,4.83178875]
[1762441868162,0.7,158.65,158.6,20.592]
[1762441868366,0.7,158.65,158.61,4.83178875]
[1762441868536,4.83178875,158.69,158.58,17.20799791]
[1762441868743,22.75721268,158.68,158.64,4.83178875]
[1762441868971,0.7,158.67,158.64,4.83178875]
[1762441869650,6.30199142,158.68,158.66,4.83178875]
[1762441869858,6.30199142,158.68,158.67,4.83178875]
[1762441870341,0.7,158.68,158.67,4.83178875]
[1762441870542,7.00199142,158.68,158.67,4.83178875]
[1762441870872,0.7,158.71,158.67,4.83178875]
[1762441871363,42.17346685,158.75,158.66,20.592]
[1762441871364,0.7,158.7,158.66,20.592]
[1762441871565,0.7,158.7,158.66,25.42378875]
[1762441872142,4.83178875,158.67,158.58,0.66]
[1762441872372,4.83178875,158.66,158.61,4.83178875]
[1762441872556,22.05558005,158.69,158.65,4.83178875]
[1762441872940,0.7,158.68,158.65,4.83178875]
[1762441873147,0.7,158.69,158.67,4.83178875]
[1762441873443,0.7,158.72,158.68,4.83178875]
[1762441873685,6.30010751,158.73,158.71,4.83178875]
[1762441873871,0.1,158.75,158.7,0.14216157]
[1762441874081,0.1,158.75,158.72,4.83178875]
[1762441874082,0.7,158.74,158.72,4.83178875]
[1762441874285,0.1,158.75,158.73,4.83178875]
[1762441874582,0.1,158.75,158.74,4.83178875]
[1762441875749,7.09921259,158.75,158.69,20.592]
[1762441875949,7.09921259,158.75,158.72,4.83178875]
[1762441876164,0.1,158.75,158.74,4.83178875]
[1762441876338,0.1,158.75,158.66,7.86]
[1762441876339,6.39921259,158.75,158.7,4.83178875]
[1762441876542,6.39921259,158.75,158.72,4.83178875]
[1762441876774,7.09921259,158.75,158.72,4.83178875]
[1762441876975,0.7,158.74,158.72,4.83178875]
[1762441877365,0.7,158.74,158.67,20.592]
[1762441877567,0.7,158.74,158.7,4.83178875]
[1762441877768,0.7,158.74,158.72,4.83178875]
[1762441877959,0.7,158.74,158.67,20.90225556]
[1762441878279,0.7,158.74,158.69,4.83178875]
[1762441878583,0.7,158.74,158.66,12.69178875]
[1762441878584,4.83178875,158.72,158.66,12.69178875]
[1762441878779,4.83178875,158.72,158.62,6.30437337]
[1762441878780,4.83178875,158.69,158.63,4.83178875]
[1762441878979,20.592,158.7,158.66,4.83178875]
[1762441879183,21.292,158.7,158.65,4.83178875]
[1762441879485,5.53178875,158.69,158.64,4.83178875]
[1762441879669,0.7,158.69,158.64,4.83178875]
[1762441879981,0.7,158.68,158.64,4.83178875]
[1762441880359,0.7,158.68,158.62,20.592]
[1762441880564,6.3023886,158.67,158.65,4.83178875]
[1762441880877,6.3023886,158.67,158.64,4.83178875]
[1762441881258,0.7,158.66,158.61,4.83178875]
[1762441881454,0.7,158.66,158.59,20.592]
[1762441881657,5.53178875,158.66,158.59,4.83178875]
[1762441881893,5.53178875,158.66,158.58,28.452]
[1762441882063,0.7,158.65,158.6,4.83178875]
[1762441882488,6.30358043,158.64,158.6,4.83178875]
[1762441882786,7.00323167,158.65,158.61,4.83178875]
[1762441882961,6.30323167,158.65,158.61,4.83178875]
[1762441883161,0.69,158.64,158.61,4.83178875]
[1762441883467,0.69,158.64,158.6,4.83178875]
[1762441883786,0.69,158.64,158.59,4.83178875]
[1762441884286,0.69,158.64,158.59,25.42378875]
[1762441884581,22.06392232,158.63,158.58,12.69178875]
[1762441884757,26.89571107,158.63,158.53,6.30789036]
[1762441884963,4.83178875,158.6,158.5,0.66]
[1762441885287,4.83178875,158.57,158.45,18.86712097]
[1762441885466,4.83178875,158.55,158.48,4.83178875]
[1762441885666,0.69,158.54,158.49,4.83178875]
[1762441885972,0.69,158.54,158.48,20.592]
[1762441886157,5.52178875,158.54,158.44,7.86]
[1762441886354,4.83178875,158.51,158.44,7.86]
[1762441886578,4.83178875,158.5,158.44,12.69178875]
[1762441886780,5.52178875,158.5,158.44,12.69178875]
[1762441886983,0.69,158.49,158.44,12.69178875]
[1762441887158,0.69,158.49,158.44,7.86]
[1762441887359,0.69,158.49,158.46,4.83178875]
[1762441887586,21.282,158.52,158.48,4.83178875]
[1762441887765,0.69,158.51,158.47,4.83178875]
[1762441888085,0.69,158.51,158.48,4.83178875]
[1762441888300,0.69,158.51,158.49,4.83178875]
[1762441888604,0.69,158.53,158.5,4.83178875]
[1762441888761,0.69,158.56,158.52,4.83178875]
[1762441888954,0.69,158.56,158.54,4.83178875]
[1762441889158,0.69,158.6,158.55,4.83178875]
[1762441889463,0.69,158.59,158.57,4.83178875]
[1762441889653,0.69,158.59,158.55,4.83178875]
[1762441889858,4.83178875,158.58,158.52,4.83178875]
[1762441890077,25.42378875,158.58,158.52,4.83178875]
[1762441890394,0.69,158.59,158.56,4.83178875]
[1762441890595,22.07087904,158.58,158.51,0.14216157]
[1762441890768,22.07087904,158.58,158.53,4.83178875]
[1762441890967,0.69,158.57,158.5,28.452]
[1762441891167,0.69,158.57,158.52,4.83178875]
[1762441892076,0.69,158.57,158.53,4.83178875]
[1762441892304,0.69,158.57,158.54,4.83178875]
[1762441892520,0.69,158.57,158.5,28.452]
[1762441892685,6.30676084,158.56,158.53,4.83178875]
[1762441893079,6.99676084,158.56,158.53,4.83178875]
[1762441893275,0.69,158.59,158.55,4.83178875]
[1762441893581,0.69,158.59,158.54,4.83178875]
[1762441893582,6.99556781,158.59,158.54,4.83178875]
[1762441893781,6.99556781,158.59,158.5,28.452]
[1762441893782,27.5912761,158.59,158.5,28.452]
[1762441894004,4.83178875,158.56,158.5,12.69178875]
[1762441894184,20.592,158.56,158.51,4.83178875]
[1762441894385,0.69,158.55,158.5,12.69178875]
[1762441894593,22.07644758,158.54,158.5,7.86]
[1762441894794,22.07644758,158.54,158.47,4.83178875]
[1762441894795,5.62028304,158.53,158.47,4.83178875]
[1762441895015,0.69,158.53,158.49,4.83178875]
[1762441895194,0.69,158.52,158.49,4.83178875]
[1762441895395,0.69,158.52,158.44,20.592]
[1762441895599,0.69,158.52,158.43,0.2]
[1762441895600,4.83178875,158.49,158.43,5.03178875]
[1762441895791,5.6205318,158.48,158.43,0.2]
[1762441896099,22.21860915,158.54,158.47,4.83178875]
[1762441896100,21.282,158.51,158.47,4.83178875]
[1762441896312,9.78882769,158.54,158.48,4.83178875]
[1762441896492,26.89925958,158.55,158.49,4.83178875]
[1762441896683,6.30795433,158.53,158.49,4.83178875]
[1762441897099,6.30764879,158.54,158.5,4.83178875]
[1762441897419,7.00764879,158.54,158.5,4.83178875]
[1762441897716,0.7,158.53,158.48,4.83178875]
[1762441897887,5.53178875,158.53,158.47,4.83178875]
[1762441898286,0.7,158.52,158.48,4.83178875]
[1762441898494,0.7,158.52,158.49,4.83178875]
[1762441898914,6.30875023,158.51,158.49,4.83178875]
[1762441899408,6.30795433,158.53,158.49,4.83178875]
[1762441899615,0.7,158.53,158.49,4.83178875]
[1762441899815,0.7,158.52,158.49,4.83178875]
[1762441900021,0.7,158.52,158.48,4.83178875]
[1762441900322,0.7,158.52,158.47,4.83178875]
[1762441900499,0.7,158.52,158.47,6.84247081]
[1762441900903,6.30875023,158.51,158.47,6.84247081]
[1762441901107,6.30875023,158.51,158.48,6.84247081]
[1762441901299,7.00875023,158.51,158.48,6.84247081]
[1762441901494,0.7,158.54,158.49,6.84247081]
[1762441901724,28.91974778,158.54,158.48,6.84247081]
[1762441902019,7.54247081,158.53,158.46,20.592]
[1762441902207,6.84247081,158.5,158.44,6.84247081]
[1762441902413,6.84247081,158.47,158.43,0.2]
[1762441902613,7.63131342,158.46,158.43,0.2]
[1762441902920,0.7,158.5,158.43,0.2]
[1762441902921,0.7,158.49,158.45,6.84247081]
[1762441903090,21.292,158.49,158.43,0.2]
[1762441903296,21.292,158.49,158.44,6.84247081]
[1762441903591,21.292,158.49,158.43,0.2]
[1762441903592,21.292,158.5,158.43,0.2]
[1762441903794,0.7,158.5,158.45,6.84247081]
[1762441904007,0.7,158.5,158.43,7.04247081]
[1762441904008,0.7,158.49,158.43,7.04247081]
[1762441904213,7.54247081,158.49,158.43,7.04247081]
[1762441904414,7.54247081,158.49,158.43,0.2]
[1762441904715,6.84247081,158.47,158.43,0.2]
[1762441904921,22.08759308,158.46,158.43,0.2]
[1762441905220,0.7,158.46,158.43,0.2]
[1762441905718,7.0096462,158.49,158.44,6.84247081]
[1762441905910,7.0096462,158.49,158.45,6.84247081]
[1762441906097,7.0096462,158.49,158.46,6.84247081]
[1762441907626,6.3096462,158.49,158.43,0.2]
[1762441907808,125.992,158.51,158.46,6.84247081]
[1762441907998,6.30916989,158.5,158.44,0.68]
[1762441908202,13.8516407,158.5,158.43,20.792]
[1762441908405,6.84247081,158.47,158.43,0.2]
[1762441908716,7.63131342,158.46,158.43,0.2]
[1762441908914,27.43447081,158.44,158.43,1e-08]
[1762441909107,13.94295048,158.44,158.39,0.2]
[1762441909302,7.54247081,158.43,158.39,0.2]
[1762441909541,22.79038121,158.44,158.4,6.84247081]
[1762441909822,0.7,158.43,158.4,6.84247081]
[1762441910221,0.7,158.43,158.39,7.04247081]
[1762441910605,0.7,158.43,158.39,0.2]
[1762441911025,6.3123343,158.42,158.39,0.2]
[1762441911405,0.7,158.41,158.39,0.2]
[1762441912213,6.31229712,158.43,158.4,6.84247081]
[1762441912419,6.98229712,158.43,158.39,7.04247081]
[1762441912607,0.67,158.42,158.39,7.04247081]
[1762441913235,6.31273278,158.41,158.39,0.2]
[1762441913807,6.98273278,158.41,158.39,0.2]
[1762441914332,0.67,158.4,158.39,0.2]
[1762441914509,6.98273278,158.41,158.39,0.2]
[1762441914715,0.67,158.4,158.39,0.2]
[1762441915257,6.98313131,158.4,158.39,0.2]
[1762441915535,19.10772008,158.45,158.39,7.04247081]
[1762441915743,6.98153749,158.44,158.4,6.84247081]
[1762441915916,22.76038121,158.44,158.41,6.84247081]
[1762441916113,22.76038121,158.44,158.42,6.84247081]
[1762441916114,0.67,158.44,158.42,6.84247081]
[1762441916311,0.67,158.44,158.39,0.2]
[1762441916517,0.67,158.44,158.41,6.84247081]
[1762441916730,0.67,158.44,158.42,6.84247081]
[1762441917239,0.67,158.48,158.43,6.84247081]
[1762441917557,6.31038788,158.47,158.4,6.84247081]
[1762441917773,13.82285869,158.47,158.41,6.84247081]
[1762441917940,0.67,158.46,158.42,6.84247081]
[1762441918455,6.84247081,158.43,158.39,0.2]
[1762441918661,6.84247081,158.4,158.39,0.2]
[1762441918849,6.84247081,158.41,158.39,0.2]
[1762441919151,7.77227272,158.4,158.39,0.2]
[1762441919765,7.7709652,158.43,158.39,7.04247081]
[1762441919939,6.98197322,158.43,158.39,7.04247081]
[1762441920126,0.67,158.42,158.39,0.2]
[1762441920564,0.78889239,158.45,158.41,6.84247081]
[1762441920732,22.08797056,158.46,158.42,6.84247081]
[1762441920941,0.67,158.45,158.42,6.84247081]
[1762441921140,6.31153749,158.44,158.41,6.84247081]
[1762441921341,6.84247081,158.42,158.39,0.2]
[1762441921554,6.84247081,158.4,158.39,0.2]
[1762441921941,7.51247081,158.4,158.39,0.2]
[1762441922142,0.67,158.4,158.39,0.2]
[1762441922348,7.51247081,158.42,158.39,0.2]
[1762441922556,54.43701084,158.44,158.39,0.2]
[1762441922557,0.67,158.41,158.39,0.2]
[1762441922734,7.51247081,158.41,158.39,0.2]
[1762441922929,0.78914141,158.4,158.39,0.2]
[1762441923129,0.67,158.4,158.39,0.2]
[1762441923352,6.98313131,158.4,158.39,0.2]
[1762441923734,6.98313131,158.4,158.37,1e-08]
[1762441923735,28.9384304,158.4,158.37,1e-08]
[1762441923931,20.592,158.34,158.27,0.2]
[1762441924135,6.84247081,158.32,158.27,0.2]
[1762441924337,6.84247081,158.32,158.27,7.04247081]